bitfinex-derivatives/quotes_ETHF0:USTF0_20251118
["timestamp","ask_amount","ask_price","bid_price","bid_amount"]
[1763457712401,0.8995,3046.2,3045.7,3.21028016]
[1763457713309,0.8995,3046.2,3045.7,3.74275016]
[1763457713910,0.8995,3046.2,3045.7,3.21028016]
[1763457716109,0.8995,3046.2,3045.7,0.00248016]
[1763457716912,0.8995,3045.8,3045.7,0.00248016]
[1763457717309,0.4839,3046.0,3045.7,0.00248016]
[1763457717310,0.4839,3046.0,3045.7,0.80358016]
[1763457718603,0.4839,3046.0,3045.9,0.8011]
[1763457718803,3.2078,3046.3,3045.9,0.8011]
[1763457718804,3.2078,3046.3,3046.2,0.8011]
[1763457719406,4.0143,3046.3,3046.2,0.8011]
[1763457720407,4.0143,3046.3,3045.8,0.53246]
[1763457720609,0.8065,3045.8,3045.7,0.80358016]
[1763457720812,0.4839,3046.0,3045.7,0.80358016]
[1763457723905,1.2904,3046.0,3045.9,0.8011]
[1763457724707,3.2078,3046.3,3045.9,0.8011]
[1763457724904,4.0143,3046.3,3046.2,0.8011]
[1763457725515,4.0143,3046.3,3045.9,0.53245]
[1763457725703,4.0143,3046.3,3045.8,0.53246]
[1763457725905,3.2078,3046.3,3046.2,0.8011]
[1763457726107,3.2078,3046.3,3046.2,1.33349]
[1763457726407,3.2078,3046.3,3046.2,0.8011]
[1763457726612,4.0143,3046.3,3045.7,3.21028016]
[1763457726817,4.0143,3046.3,3045.7,3.74276016]
[1763457727314,4.0143,3046.3,3045.9,0.53244]
[1763457727611,4.0143,3046.3,3045.7,3.74275016]
[1763457728310,0.8065,3045.8,3045.7,3.21028016]
[1763457728516,0.4839,3046.0,3045.7,4.01138016]
[1763457729405,0.8065,3045.8,3045.7,4.01138016]
[1763457730913,4.0143,3045.8,3045.7,0.00248016]
[1763457731215,4.0143,3045.8,3044.8,7.0968]
[1763457731413,3.2078,3045.4,3044.8,3.2078]
[1763457731716,0.8065,3044.9,3044.8,3.2078]
[1763457731914,4.0143,3044.9,3044.1,0.88058793]
[1763457732221,4.0143,3044.9,3044.1,0.53560824]
[1763457732613,4.0143,3044.9,3044.1,0.00284824]
[1763457733016,4.0143,3044.9,3044.8,0.8011]
[1763457733218,3.2078,3044.9,3044.8,0.8011]
[1763457734717,0.4839,3045.5,3045.2,0.8011]
[1763457734718,3.2078,3045.3,3045.2,0.8011]
[1763457736623,4.0143,3045.3,3045.2,0.8011]
[1763457737014,4.0143,3045.3,3044.5,0.4763]
[1763457737228,3.2078,3044.9,3044.4,3.2078]
[1763457737626,3.2078,3044.9,3044.1,0.00284824]
[1763457737927,3.2078,3044.9,3044.2,0.53274]
[1763457738414,3.2078,3044.9,3044.1,0.53560824]
[1763457738611,3.2078,3044.9,3044.3,0.53272]
[1763457739017,3.2078,3044.9,3044.1,0.00284824]
[1763457739326,3.2078,3044.9,3044.3,0.53272]
[1763457739524,3.2078,3044.9,3044.1,0.53560824]
[1763457739722,3.2078,3044.9,3044.2,0.53274]
[1763457739919,3.2078,3044.9,3044.1,0.00284824]
[1763457739920,3.2078,3044.9,3044.1,0.53559824]
[1763457740220,0.7799,3044.2,3044.1,0.00284824]
[1763457740525,0.78256894,3044.2,3044.1,0.80314824]
[1763457740926,0.00266894,3044.2,3044.1,0.80314824]
[1763457743522,0.00266894,3044.2,3044.1,1.33590824]
[1763457744522,0.00266894,3044.2,3044.1,0.80314824]
[1763457744523,0.78256894,3044.2,3044.1,0.80314824]
[1763457745319,0.78256894,3044.2,3044.1,0.00284824]
[1763457746427,0.00266894,3044.2,3044.1,0.80314824]
[1763457746726,0.78256894,3044.2,3044.1,0.00284824]
[1763457751234,0.782,3043.8,3043.7,0.03285529]
[1763457752124,0.782,3043.8,3043.7,0.76352154]
[1763457752836,0.782,3043.8,3043.7,0.03522154]
[1763457753437,0.782,3043.8,3043.7,0.76352154]
[1763457753934,0.782,3043.8,3043.7,0.03522154]
[1763457755434,0.782,3043.8,3043.7,2.154e-05]
[1763457756436,0.782,3043.8,3042.1,0.88058793]
[1763457756437,0.4425,3043.0,3042.4,4.46916]
[1763457756636,3.6503,3043.0,3042.5,0.53304]
[1763457757137,3.6503,3043.0,3042.6,0.53302]
[1763457757336,3.6503,3043.0,3042.6,0.00420173]
[1763457757529,3.6503,3043.0,3042.6,0.53722173]
[1763457757725,0.782,3042.7,3042.6,1.26552173]
[1763457757930,3.6503,3043.0,3042.6,1.26552173]
[1763457758125,3.6503,3043.0,3042.6,0.00420173]
[1763457758330,0.782,3042.7,3042.6,0.00420173]
[1763457759136,0.782,3042.7,3042.6,0.73250173]
[1763457759333,3.6503,3043.0,3042.6,0.73250173]
[1763457760141,3.6503,3043.0,3042.6,1.26551173]
[1763457760345,3.6503,3043.0,3042.9,0.7283]
[1763457760346,3.2078,3043.0,3042.9,0.7283]
[1763457760840,3.2326695,3043.0,3042.9,0.7283]
[1763457761039,3.26161,3043.0,3042.9,0.7283]
[1763457761835,0.05381,3043.0,3042.9,6.7283]
[1763457762041,0.05381,3043.0,3042.9,0.7283]
[1763457763240,0.83581,3043.0,3042.9,0.7283]
[1763457766539,1.27831,3043.0,3042.7,3.2078]
[1763457766940,1.27831,3043.0,3042.9,0.7283]
[1763457767142,0.782,3043.0,3042.9,0.67449]
[1763457767329,3.2078,3043.4,3042.9,0.67449]
[1763457767534,0.782,3043.0,3042.9,0.67449]
[1763457768739,0.782,3042.8,3042.7,3.2078]
[1763457769044,0.38704394,3042.8,3042.7,3.2078]
[1763457769240,0.38704394,3042.8,3042.7,3.9361]
[1763457769643,0.38704394,3042.8,3042.7,4.46911]
[1763457769839,3.2078,3043.4,3042.7,4.46911]
[1763457770244,3.2078,3043.4,3042.7,3.9361]
[1763457770648,3.2078,3043.4,3042.7,4.46911]
[1763457771234,4.4323,3043.0,3042.6,0.00420173]
[1763457771437,0.782,3042.7,3042.6,0.73250173]
[1763457771641,0.782,3042.7,3042.6,0.00420173]
[1763457771842,0.782,3042.7,3042.6,0.73250173]
[1763457772348,0.782,3042.7,3042.6,0.00420173]
[1763457773045,0.782,3042.7,3042.6,0.73250173]
[1763457774847,0.782,3042.7,3042.6,0.00420173]
[1763457778853,0.38697713,3042.7,3042.6,0.00420173]
[1763457780756,0.6655,3041.8,3041.7,1.61168793]
[1763457780955,0.4201,3042.5,3040.9,0.88567799]
[1763457780956,0.6655,3041.0,3040.9,0.88567799]
[1763457781255,0.6655,3041.0,3040.9,0.7311]
[1763457781748,0.6692142,3041.0,3040.9,0.73514053]
[1763457781953,0.0037142,3041.0,3040.9,0.73514053]
[1763457782455,0.6692142,3041.0,3040.9,0.73514053]
[1763457783249,1.0893142,3041.0,3040.9,0.00404053]
[1763457786458,0.6655,3040.2,3040.1,3.9389]
[1763457786855,0.6655,3040.2,3040.0,0.25]
[1763457786856,3.8733,3040.2,3040.0,0.25]
[1763457787064,0.4201,3040.0,3039.2,2.6271]
[1763457787361,3.2078,3040.2,3040.1,0.7311]
[1763457787562,3.8733,3040.2,3039.5,0.4193]
[1763457787763,0.6655,3039.6,3039.5,0.7311]
[1763457787962,0.4201,3040.0,3039.5,1.1504]
[1763457788166,3.21272943,3040.5,3040.4,0.7311]
[1763457789051,0.4238142,3041.0,3040.9,0.53332]
[1763457789258,0.4238142,3041.0,3040.9,3.2078]
[1763457789771,1.0893142,3041.0,3040.9,3.2078]
[1763457789964,0.4238142,3041.0,3040.9,3.2078]
[1763457790365,1.0893142,3041.0,3040.9,3.2078]
[1763457792862,0.4238142,3041.0,3040.9,3.2078]
[1763457793371,1.0893142,3041.0,3040.9,3.2078]
[1763457793763,0.4238142,3041.0,3040.9,3.2078]
[1763457794571,1.0893142,3041.0,3040.9,3.2078]
[1763457794769,0.4238142,3041.0,3040.9,3.2078]
[1763457795166,0.0037142,3041.0,3040.9,3.2078]
[1763457795561,0.4238142,3041.0,3040.9,3.2078]
[1763457796172,0.4238142,3041.0,3040.9,3.74112]
[1763457796472,1.0893142,3041.0,3040.9,3.74112]
[1763457796971,1.13457362,3041.0,3040.9,3.74112]
[1763457797169,0.46907362,3041.0,3040.9,3.74112]
[1763457798261,0.00492943,3041.3,3041.2,0.53327]
[1763457798766,0.4201,3041.0,3040.9,3.74112]
[1763457799266,0.42377705,3041.0,3040.9,3.74112]
[1763457799468,1.08927705,3041.0,3040.9,3.2078]
[1763457800768,1.08927705,3041.0,3040.9,3.74112]
[1763457801469,0.00367705,3041.0,3040.9,3.74112]
[1763457801669,0.46637705,3041.0,3040.9,3.74112]
[1763457803671,0.00367705,3041.0,3040.9,3.74112]
[1763457803971,0.00367705,3041.0,3040.9,10.91812]
[1763457804163,0.00492943,3041.3,3041.2,0.53327]
[1763457804776,0.00492943,3041.3,3040.9,3.2078]
[1763457804965,0.00492943,3041.3,3041.1,0.53328]
[1763457805169,0.00846473,3041.3,3041.1,0.53328]
[1763457806569,3.2078,3042.3,3040.9,3.2078]
[1763457806766,0.7511,3041.7,3041.6,3.2078]
[1763457807572,0.7511,3041.3,3041.2,3.2078]
[1763457807877,0.4147,3041.0,3040.8,3.2078]
[1763457808168,0.4147,3041.0,3040.8,3.21043214]
[1763457808376,0.01948461,3041.0,3040.8,3.74377214]
[1763457809168,0.4147,3041.5,3040.8,3.21043214]
[1763457809371,0.00386608,3041.7,3041.5,0.53322]
[1763457809577,0.4147,3041.5,3041.4,3.2078]
[1763457810270,0.00386608,3041.7,3041.6,0.5332]
[1763457810576,0.00386608,3041.7,3041.4,3.2078]
[1763457810577,0.00386608,3041.7,3041.5,0.53321]
[1763457811462,0.4147,3041.5,3041.4,3.2078]
[1763457815678,0.4147,3041.5,3041.4,3.74103]
[1763457816875,1.1347,3041.5,3041.4,3.74103]
[1763457817076,0.4147,3041.0,3040.9,0.53332]
[1763457818283,0.01952095,3041.0,3040.9,0.53332]
[1763457818582,0.4147,3041.5,3040.8,0.00263214]
[1763457818776,0.4147,3041.5,3041.2,0.53326]
[1763457818982,0.4147,3041.5,3041.3,0.53324]
[1763457819183,0.4147,3041.5,3041.2,0.53327]
[1763457819483,0.72,3041.2,3041.1,3.2078]
[1763457820374,0.4147,3041.5,3041.1,3.2078]
[1763457820576,0.4147,3041.5,3041.1,3.74109]
[1763457820883,0.4147,3041.5,3041.1,3.74108]
[1763457821082,0.4147,3041.5,3041.1,3.2078]
[1763457821286,0.72,3041.2,3041.1,3.2078]
[1763457821779,0.72,3041.2,3041.1,3.74109]
[1763457821974,0.4147,3041.5,3041.1,3.74109]
[1763457822381,0.4147,3041.5,3041.1,3.2078]
[1763457822581,0.4147,3041.5,3041.1,3.74109]
[1763457823881,0.4147,3041.5,3041.1,3.2078]
[1763457824385,0.4147,3041.5,3041.1,3.74108]
[1763457825389,0.4147,3041.5,3041.1,3.2078]
[1763457825588,0.72,3041.2,3041.1,3.2078]
[1763457826783,0.72,3040.9,3040.8,0.00263214]
[1763457826991,0.72,3040.9,3040.8,0.53597214]
[1763457827188,0.4147,3041.0,3040.8,0.53597214]
[1763457827487,1.1347,3041.0,3040.8,0.53597214]
[1763457828190,0.72,3040.9,3040.8,0.53597214]
[1763457829490,0.4147,3041.0,3040.8,0.53597214]
[1763457829690,1.1347,3041.0,3040.8,0.53597214]
[1763457830391,0.4195,3040.9,3040.8,0.53597214]
[1763457832878,1.1395,3040.9,3040.8,0.00263214]
[1763457833084,1.1395,3040.9,3040.8,0.53597214]
[1763457833783,0.4195,3040.9,3040.8,0.53597214]
[1763457834192,1.1395,3040.9,3040.8,0.00263214]
[1763457834987,1.1395,3040.9,3040.8,0.53597214]
[1763457835991,1.1395,3040.9,3040.8,0.00263214]
[1763457837497,1.1395,3040.9,3040.6,0.00492943]
[1763457837498,0.6965,3040.7,3040.6,0.00492943]
[1763457837792,0.6965,3039.7,3039.6,0.53354]
[1763457837993,0.4003,3040.0,3039.5,4.37690635]
[1763457838192,0.6965,3039.8,3039.7,0.53353]
[1763457838382,3.6081,3040.5,3039.7,0.00354777]
[1763457838793,0.4003,3040.0,3039.9,3.7413]
[1763457839189,1.0968,3040.0,3039.9,3.7413]
[1763457839489,0.4003,3040.0,3039.9,3.7413]
[1763457839688,1.0968,3040.0,3039.9,3.2078]
[1763457839988,0.6965,3039.9,3039.8,0.53844943]
[1763457840195,0.70142943,3040.4,3039.8,0.53842943]
[1763457840496,1.0968,3040.0,3039.8,0.00492943]
[1763457840805,0.6965,3039.9,3039.8,0.53844943]
[1763457841092,0.00492943,3040.4,3040.1,0.53346]
[1763457841298,0.00492943,3040.4,3040.3,0.53343]
[1763457841494,0.00492943,3040.4,3040.1,3.74125]
[1763457841495,0.70142943,3040.4,3040.1,3.74125]
[1763457841687,0.70142943,3040.4,3040.1,3.2078]
[1763457841882,0.00492943,3040.4,3040.3,0.53343]
[1763457842299,0.00492943,3040.4,3040.2,0.53344]
[1763457842496,0.00492943,3040.4,3040.3,0.53343]
[1763457844302,0.70142943,3040.4,3040.2,0.53345]
[1763457844497,0.6965,3040.2,3040.1,3.2078]
[1763457846994,0.6965,3039.9,3039.8,0.00492943]
[1763457847405,1.0968,3040.0,3039.8,0.00492943]
[1763457847590,0.6965,3039.9,3039.8,0.00492943]
[1763457847795,0.4003,3040.0,3039.3,3.2078]
[1763457847996,0.4003,3040.0,3039.7,0.53353]
[1763457848398,0.4003,3040.0,3039.8,0.53352]
[1763457848702,1.0968,3040.0,3039.8,0.53642666]
[1763457849194,0.6965,3039.9,3039.8,0.00290666]
[1763457851299,0.00492943,3040.4,3039.8,0.00290666]
[1763457851300,0.70142943,3040.4,3039.8,0.00290666]
[1763457851493,0.00492943,3040.4,3039.8,0.00290666]
[1763457851700,0.70142943,3040.4,3039.8,0.00290666]
[1763457853602,0.4003,3040.0,3039.8,0.00290666]
[1763457853998,0.00492943,3040.4,3039.8,0.00290666]
[1763457854900,0.70142943,3040.4,3039.8,0.00290666]
[1763457856010,0.00492943,3040.4,3040.1,3.2078]
[1763457859014,0.00492943,3040.4,3040.1,4.37690635]
[1763457859307,3.6273,3040.9,3040.1,4.37690635]
[1763457859509,3.6273,3040.9,3040.5,3.2078]
[1763457859909,4.3238,3040.9,3040.5,3.2078]
[1763457863113,0.4195,3040.9,3040.5,3.2078]
[1763457863516,0.4195,3040.9,3040.5,4.37690635]
[1763457864510,1.1611,3040.9,3040.5,4.37690635]
[1763457865214,1.1611,3040.9,3040.7,3.2078]
[1763457865515,0.4196,3040.5,3040.4,0.00492943]
[1763457865719,0.4196,3040.5,3040.4,1.17403578]
[1763457865915,0.4196,3040.5,3040.4,0.00492943]
[1763457868113,1.1612,3040.5,3040.4,0.00492943]
[1763457877229,1.20645942,3040.5,3040.4,0.00492943]
[1763457878507,1.20645942,3040.5,3040.4,2.943e-05]
[1763457878714,0.6749,3039.9,3039.8,0.00290666]
[1763457879422,0.72015942,3039.9,3039.8,0.00290666]
[1763457882919,0.04525942,3039.9,3039.8,0.00290666]
[1763457883121,0.72015942,3039.9,3039.8,0.00290666]
[1763457883320,0.04525942,3039.9,3039.8,0.00290666]
[1763457883516,0.72015942,3039.9,3039.8,0.00290666]
[1763457890716,0.72015942,3039.9,3039.8,6.66e-06]
[1763457890922,0.6749,3039.2,3039.1,4.37690635]
[1763457891218,0.6749,3039.1,3039.0,1.16910635]
[1763457891424,1.1021,3039.0,3038.9,1.16910635]
[1763457891820,1.1059531,3039.0,3038.9,0.0025339]
[1763457892421,0.47631252,3039.0,3038.9,0.0025339]
[1763457892630,0.47631252,3039.0,3038.9,1.18385116]
[1763457892825,0.47631252,3039.0,3038.9,0.0025339]
[1763457893228,0.47631252,3039.0,3038.9,1.18385116]
[1763457893735,0.43212943,3039.5,3038.9,1.18385116]
[1763457893935,0.43212943,3039.5,3039.1,3.2078]
[1763457894841,0.43628572,3039.5,3039.1,3.2078]
[1763457895226,1.11118572,3039.5,3039.1,3.2078]
[1763457896234,0.43628572,3039.5,3039.1,3.2078]
[1763457897328,1.11118572,3039.5,3039.1,4.38911726]
[1763457897635,0.43628572,3039.5,3039.1,4.38911726]
[1763457898732,0.43628572,3039.5,3039.3,1.18131726]
[1763457899234,1.09448572,3039.5,3039.4,1.18131726]
[1763457901338,1.09448572,3039.5,3039.2,1.75381918]
[1763457901339,0.6582,3039.4,3039.3,1.18131726]
[1763457902237,0.6582,3039.4,3039.2,1.75381918]
[1763457902438,0.6582,3039.3,3039.2,1.75381918]
[1763457903835,0.43628572,3039.5,3039.2,1.75381918]
[1763457904030,1.09448572,3039.5,3039.4,1.18231545]
[1763457905331,0.43628572,3039.5,3039.3,1.75381918]
[1763457905531,0.4272,3040.0,3039.4,2.33842557]
[1763457905737,0.69012493,3040.0,3039.9,4.39056691]
[1763457905938,0.69012493,3040.0,3039.9,4.42926691]
[1763457906233,0.69012493,3040.0,3039.9,3.2078]
[1763457906435,0.69278718,3040.0,3039.9,3.2078]
[1763457907239,0.69278718,3040.0,3039.9,4.39056691]
[1763457907448,0.69278718,3040.0,3039.9,3.2078]
[1763457907836,0.6582,3039.9,3039.8,1.18276691]
[1763457908144,0.03458718,3040.0,3039.6,0.00492943]
[1763457908145,0.6582,3039.7,3039.6,0.00492943]
[1763457909043,0.6582,3039.7,3039.6,0.89275125]
[1763457909636,0.6582,3039.7,3039.6,0.00492943]
[1763457910935,3.866,3039.7,3039.6,0.00492943]
[1763457914943,1.0245,3039.0,3038.9,0.0025339]
[1763457915148,0.6582,3038.8,3038.7,0.12355093]
[1763457915446,0.6582,3038.8,3038.7,0.76715093]
[1763457915637,0.26275662,3038.8,3038.7,0.76715093]
[1763457915843,0.26275662,3038.8,3038.7,0.12355093]
[1763457916145,0.26275662,3038.8,3038.7,0.12662682]
[1763457916345,0.26275662,3038.8,3038.7,0.77022682]
[1763457917742,0.26275662,3038.8,3038.7,0.12662682]
[1763457918148,0.26275662,3038.8,3038.2,2.03619333]
[1763457918149,0.6582,3038.2,3038.1,4.98195037]
[1763457918341,0.37122943,3038.5,3038.1,3.8514]
[1763457918746,0.6582,3038.2,3038.1,3.8514]
[1763457919044,0.6582,3038.2,3038.1,3.85453398]
[1763457919250,0.6582,3038.2,3038.1,3.21093398]
[1763457919849,0.6582,3038.2,3038.1,0.00313398]
[1763457921748,0.3584,3037.5,3037.3,3.8606]
[1763457921947,0.631,3037.4,3037.3,3.8606]
[1763457922143,0.631,3037.4,3037.3,0.6528]
[1763457922345,0.631,3037.0,3036.9,3.8606]
[1763457922748,0.63407063,3037.0,3036.9,3.86302616]
[1763457922952,0.99247063,3037.0,3036.9,0.00242616]
[1763457923149,0.63407063,3037.0,3036.9,0.65522616]
[1763457923353,0.99247063,3037.0,3036.9,0.65522616]
[1763457923554,0.99247063,3037.0,3036.9,0.00242616]
[1763457925050,0.9894,3036.5,3036.4,3.2078]
[1763457925255,0.2763,3035.7,3035.6,3.2078]
[1763457925455,0.2763,3035.3,3035.2,3.2078]
[1763457925650,0.00493795,3036.8,3034.5,0.3848]
[1763457925651,3.2078,3035.5,3034.8,3.2078]
[1763457925855,3.21273795,3035.5,3035.0,0.3848]
[1763457926055,3.21273795,3035.5,3035.0,0.38745893]
[1763457926353,0.00493795,3035.5,3035.4,0.6528]
[1763457926546,0.00493795,3035.5,3035.0,0.38745893]
[1763457926752,3.21273795,3035.5,3035.0,0.38745893]
[1763457926950,3.2078,3035.1,3035.0,0.38745893]
[1763457928054,3.15920447,3035.1,3035.0,0.38745893]
[1763457928257,3.11060894,3035.1,3035.0,0.38745893]
[1763457928453,3.05751787,3035.1,3035.0,0.38745893]
[1763457928653,3.05751787,3035.1,3035.0,1.04025893]
[1763457929651,3.2078,3036.3,3035.5,0.4179]
[1763457930156,0.6561,3035.6,3035.2,3.2078]
[1763457930749,0.6561,3035.3,3035.2,3.2078]
[1763457931155,0.70540505,3035.3,3035.2,3.8719]
[1763457931354,0.04930505,3035.3,3035.2,3.8719]
[1763457931550,0.00493795,3035.7,3035.6,0.6641]
[1763457931758,0.00493795,3035.7,3035.6,3.8719]
[1763457932963,3.2078,3036.7,3036.0,0.4179]
[1763457933162,3.2078,3036.7,3036.0,3.6257]
[1763457933663,3.2078,3036.7,3036.0,0.4179]
[1763457934063,3.21273795,3036.7,3036.0,0.4179]
[1763457936465,0.6561,3036.6,3036.5,0.4179]
[1763457936761,0.6561,3036.6,3036.0,3.6257]
[1763457936762,0.6561,3036.1,3036.0,3.2078]
[1763457937058,0.6561,3035.7,3035.6,3.2078]
[1763457937963,3.2078,3036.3,3035.6,3.8719]
[1763457938169,3.2078,3036.3,3035.6,3.2078]
[1763457938356,0.6561,3035.7,3035.6,3.2078]
[1763457940058,3.2078,3036.3,3035.6,3.8719]
[1763457940361,3.2078,3036.3,3035.6,0.6641]
[1763457941060,3.2078,3036.3,3035.5,3.6257]
[1763457941262,0.6561,3035.6,3035.5,3.6257]
[1763457941459,0.6561,3035.6,3035.5,3.2078]
[1763457941862,0.6561,3035.6,3035.1,0.00493795]
[1763457942066,0.6561,3035.2,3035.1,0.00493795]
[1763457944172,0.6485,3034.6,3034.5,3.2078]
[1763457944467,0.6485,3034.6,3033.9,3.2078]
[1763457944770,3.2078,3034.9,3034.5,1.082]
[1763457945171,3.21046846,3034.9,3034.5,1.08541002]
[1763457946167,0.6485,3034.6,3034.5,1.08541002]
[1763457946467,0.6485,3034.6,3034.5,0.42131002]
[1763457946673,0.6485,3034.6,3034.5,0.00341002]
[1763457947376,0.6401,3034.0,3032.8,1.16794564]
[1763457947572,3.2078,3033.3,3032.5,0.4179]
[1763457947969,1.847,3033.7,3032.2,0.09064158]
[1763457947970,3.2078,3032.9,3032.2,0.09064158]
[1763457948468,3.21274632,3032.9,3032.2,0.09317247]
[1763457948664,3.2078,3032.5,3032.2,0.09317247]
[1763457948864,3.21162162,3032.5,3032.2,0.09317247]
[1763457949272,3.2976,3032.4,3031.5,0.4179]
[1763457949573,3.2976,3032.4,3031.0,0.4179]
[1763457949574,3.2078,3031.9,3031.0,0.4179]
[1763457949776,3.2078,3031.3,3031.0,0.4179]
[1763457949971,3.2078,3031.8,3031.5,0.4179]
[1763457950270,3.2078,3032.2,3031.7,0.6641]
[1763457950465,3.2078,3032.2,3032.0,0.4179]
[1763457951175,3.2078,3032.2,3032.1,0.6641]
[1763457951376,0.00382162,3032.5,3032.1,0.6641]
[1763457952071,3.2078,3032.2,3032.0,0.4179]
[1763457954564,3.2078,3032.2,3031.5,0.4209336]
[1763457954772,3.2078,3031.7,3031.5,0.4209336]
[1763457954969,3.2078,3031.7,3031.5,0.0030336]
[1763457955172,6.5062,3031.7,3030.5,0.4179]
[1763457955374,3.2078,3031.2,3030.5,0.4179]
[1763457956270,3.2078,3031.2,3031.0,0.42113485]
[1763457956779,3.2078,3031.2,3031.0,0.00323485]
[1763457956974,3.2078,3031.2,3031.0,0.44983485]
[1763457957583,3.2078,3031.2,3031.0,0.00323485]
[1763457958284,3.2078,3031.2,3031.0,3.485e-05]
[1763457960479,6.5062,3031.2,3031.0,3.485e-05]
[1763457960980,3.2078,3031.2,3031.0,3.485e-05]
[1763457961275,3.2078,3031.2,3030.0,0.6966]
[1763457961276,6.0,3031.1,3030.0,0.6966]
[1763457961472,3.2078,3030.7,3030.5,0.4466]
[1763457961677,3.2078,3030.7,3030.6,0.7001]
[1763457961975,0.00494632,3030.9,3030.6,0.7001]
[1763457962281,0.00494632,3030.9,3030.8,0.7001]
[1763457962469,0.00913,3032.8,3031.5,0.4466]
[1763457962470,3.2078,3031.6,3031.5,0.4466]
[1763457963070,3.2078,3031.6,3031.0,0.4466]
[1763457963275,3.2078,3031.1,3031.0,0.4466]
[1763457963682,0.00494632,3031.4,3031.0,1.1467]
[1763457963976,3.2078,3031.2,3031.0,1.1467]
[1763457964183,3.2078,3031.2,3031.0,0.4466]
[1763457965276,3.2078,3031.2,3030.7,0.00494632]
[1763457965475,3.2078,3030.8,3030.7,0.00494632]
[1763457966079,3.2078,3030.8,3030.7,0.70504632]
[1763457966276,0.00494632,3031.4,3031.1,0.7001]
[1763457966984,3.2078,3031.2,3031.0,0.4466]
[1763457967282,3.2078,3031.2,3031.1,0.7001]
[1763457967585,0.00494632,3031.4,3031.3,0.7001]
[1763457968484,0.00494632,3031.4,3031.3,6.7001]
[1763457968678,0.00494632,3031.4,3031.3,0.7001]
[1763457969892,2.53410113,3031.6,3031.5,1.1467]
[1763457970174,3.2078,3032.0,3031.9,0.7001]
[1763457970369,3.21162162,3032.5,3032.0,0.4466]
[1763457971378,3.2078,3032.1,3032.0,1.1467]
[1763457971779,3.21162162,3032.5,3032.4,0.7001]
[1763457973581,3.21162162,3032.5,3032.0,0.4466]
[1763457973975,3.2078,3032.1,3032.0,0.4466]
[1763457976783,3.2078,3032.1,3032.0,1.1467]
[1763457977286,3.2078,3032.1,3032.0,0.4466]
[1763457977687,3.2078,3032.1,3032.0,1.1467]
[1763457978182,3.2078,3032.1,3032.0,0.4466]
[1763457980689,3.2078,3032.1,3032.0,1.1741]
[1763457981380,3.2078,3032.1,3032.0,0.4466]
[1763457981582,3.2078,3032.1,3031.5,0.4466]
[1763457982584,3.2078,3031.7,3031.0,0.4466]
[1763457982774,3.2078,3031.2,3031.0,0.4466]
[1763457983987,3.2078,3031.6,3031.5,0.4526]
[1763457985074,4.36690944,3031.6,3031.5,0.4526]
[1763457985280,3.2078,3031.6,3031.5,0.4526]
[1763457985782,3.2078,3031.6,3031.5,1.1801]
[1763457986676,3.2078,3031.6,3031.5,0.4526]
[1763457988584,3.2078,3031.6,3031.5,1.1506]
[1763457991685,3.2078,3031.6,3031.5,0.4526]
[1763457992085,3.2078,3031.6,3031.5,1.1506]
[1763457993785,3.2078,3031.6,3031.5,0.4526]
[1763457996586,3.2078,3031.6,3031.5,1.1506]
[1763457996794,2.81134552,3031.6,3031.5,1.1506]
[1763458000691,3.2078,3032.1,3032.0,1.1111]
[1763458002099,3.21162162,3032.5,3032.4,0.698]
[1763458003600,3.21162162,3032.5,3032.0,3.6209]
[1763458003902,3.21162162,3032.5,3032.4,0.698]
[1763458004693,3.21162162,3032.5,3032.0,3.6209]
[1763458004900,3.2078,3032.1,3032.0,1.1111]
[1763458005201,3.21162162,3032.5,3032.0,1.1111]
[1763458005497,3.21162162,3032.5,3032.4,0.698]
[1763458006796,2.81530458,3032.5,3032.4,0.698]
[1763458006996,0.00494632,3032.6,3032.5,1.1111]
[1763458007600,0.00494632,3032.6,3031.8,1.16794564]
[1763458007901,3.2078,3031.9,3031.0,4.82234564]
[1763458008090,3.2078,3031.9,3031.0,3.6544]
[1763458008702,3.2078,3031.9,3031.4,0.00494632]
[1763458012207,1.15910944,3031.8,3031.4,0.00494632]
[1763458012710,1.15910944,3031.7,3031.4,0.00494632]
[1763458012906,3.2078,3031.5,3031.4,0.00494632]
[1763458013910,3.2078,3031.5,3031.4,0.70294632]
[1763458014312,3.2078,3031.9,3031.8,0.698]
[1763458016218,3.2078,3031.9,3031.4,0.00494632]
[1763458016521,1.76587802,3032.6,3031.0,0.4466]
[1763458016522,3.2078,3031.5,3031.0,0.4466]
[1763458020527,3.2078,3031.5,3031.4,0.698]
[1763458020729,3.2078,3032.0,3031.5,0.4021]
[1763458022328,3.2078,3032.4,3032.0,0.4021]
[1763458022625,3.2078,3032.4,3032.3,0.6831]
[1763458023926,0.00760451,3032.6,3032.5,1.0852]
[1763458024319,0.00760451,3032.6,3032.5,0.4021]
[1763458028026,0.00760451,3032.6,3032.1,3.2078]
[1763458028231,3.2078,3032.4,3032.0,0.4021]
[1763458030730,3.2078,3032.4,3032.3,0.6831]
[1763458032228,0.00760451,3032.6,3032.5,1.0852]
[1763458036241,0.00760451,3032.6,3032.5,4.293]
[1763458036531,0.71945931,3033.1,3033.0,1.0852]
[1763458036734,3.2078,3033.2,3033.1,0.6831]
[1763458036925,3.92720943,3033.2,3033.1,0.6831]
[1763458037540,3.93071175,3033.2,3033.1,0.68665631]
[1763458039934,3.21130232,3033.2,3033.1,0.68665631]
[1763458040130,0.00494632,3033.5,3033.4,0.6831]
[1763458041336,0.00876522,3033.5,3033.4,0.6831]
[1763458043541,3.2078,3034.1,3034.0,1.0393]
[1763458044538,3.92926247,3034.1,3033.5,0.405]
[1763458044736,3.21126094,3034.1,3034.0,0.405]
[1763458044934,3.21126094,3034.1,3034.0,1.0393]
[1763458045940,3.21126094,3034.1,3033.5,0.405]
[1763458046144,3.2078,3033.6,3033.5,1.0393]
[1763458046338,3.2078,3034.0,3033.5,1.0393]
[1763458049044,3.2078,3034.0,3033.9,0.6343]
[1763458051747,0.00346094,3034.1,3033.5,3.6128]
[1763458051748,0.00346094,3034.1,3034.0,1.0406]